[Event "*** Titled Tuesday Blitz"]
[Site "Chess.com"]
[Date "2020.05.19"]
[Round "5"]
[White "Bastiandash"]
[Black "Ranindu2003"]
[Result "0-1"]
[WhiteElo "2194"]
[BlackElo "2461"]
[TimeControl "180+1"]
[EndTime "12:56:59 PDT"]
[Termination "Ranindu2003 won on time"]

1. d4 {[%clk 0:03:00.9]} 1... d5 {[%clk 0:02:59.2]} 2. Nf3 {[%clk 0:03:01.8]}
2... Nf6 {[%clk 0:02:58.6]} 3. c3 {[%clk 0:03:02.7]} 3... e6 {[%clk 0:02:55.3]}
4. Bg5 {[%clk 0:03:03]} 4... Be7 {[%clk 0:02:53.1]} 5. e3 {[%clk 0:03:03.2]}
5... b6 {[%clk 0:02:46.9]} 6. Bd3 {[%clk 0:03:02.8]} 6... Bb7 {[%clk 0:02:47.1]}
7. Nbd2 {[%clk 0:03:03.3]} 7... Nbd7 {[%clk 0:02:45.6]} 8. O-O {[%clk 0:03:03]}
8... h6 {[%clk 0:02:44.7]} 9. Bh4 {[%clk 0:03:02.7]} 9... O-O {[%clk 0:02:43.2]}
10. Ne5 {[%clk 0:03:02.7]} 10... Nxe5 {[%clk 0:02:35]} 11. dxe5 {[%clk
0:03:03.6]} 11... Nd7 {[%clk 0:02:35.6]} 12. Bxe7 {[%clk 0:03:04]} 12... Qxe7
{[%clk 0:02:36.5]} 13. f4 {[%clk 0:03:04.6]} 13... f6 {[%clk 0:02:28]} 14. Qh5
{[%clk 0:03:02.8]} 14... fxe5 {[%clk 0:02:06]} 15. fxe5 {[%clk 0:03:03.7]} 15...
Qg5 {[%clk 0:02:06]} 16. Qxg5 {[%clk 0:02:45.5]} 16... hxg5 {[%clk 0:02:05.4]}
17. Nf3 {[%clk 0:02:43.9]} 17... g4 {[%clk 0:02:01.7]} 18. Ng5 {[%clk
0:02:18.1]} 18... Nxe5 {[%clk 0:01:59]} 19. Bh7+ {[%clk 0:01:25.6]} 19... Kh8
{[%clk 0:01:55.4]} 20. Rxf8+ {[%clk 0:01:23.9]} 20... Rxf8 {[%clk 0:01:56.3]}
21. Nxe6 {[%clk 0:01:24.5]} 21... Rf6 {[%clk 0:01:21.9]} 22. Ng5 {[%clk
0:01:20.9]} 22... g6 {[%clk 0:01:17.6]} 23. Rf1 {[%clk 0:00:17]} 23... Rxf1+
{[%clk 0:01:09.6]} 24. Kxf1 {[%clk 0:00:17.3]} 24... Kg7 {[%clk 0:01:05.9]} 25.
h4 {[%clk 0:00:15.1]} 25... gxh3 {[%clk 0:00:52.4]} 26. gxh3 {[%clk 0:00:14.3]}
26... Nf7 {[%clk 0:00:45.6]} 27. Ne6+ {[%clk 0:00:05.8]} 27... Kxh7 {[%clk
0:00:44.3]} 28. Nxc7 {[%clk 0:00:06.7]} 28... Nd6 {[%clk 0:00:36.9]} 29. Ke2
{[%clk 0:00:04.1]} 29... Kg7 {[%clk 0:00:28.9]} 30. Kd3 {[%clk 0:00:03.4]} 30...
Kf6 {[%clk 0:00:26.1]} 31. Kd4 {[%clk 0:00:01.5]} 31... Nf5+ {[%clk 0:00:26]}
32. Kd3 {[%clk 0:00:02.1]} 32... Ke7 {[%clk 0:00:25.4]} 0-1

[Event "*** Titled Tuesday Blitz"]
[Site "Chess.com"]
[Date "2020.05.19"]
[Round "5"]
[White "Angel_Hranitel_37"]
[Black "Zq1"]
[Result "1/2-1/2"]
[WhiteElo "2371"]
[BlackElo "2519"]
[TimeControl "180+1"]
[EndTime "12:57:00 PDT"]
[Termination "Game drawn by agreement"]

1. d4 {[%clk 0:03:00.9]} 1... Nf6 {[%clk 0:02:59]} 2. Nf3 {[%clk 0:03:00.9]}
2... e6 {[%clk 0:02:58.7]} 3. g3 {[%clk 0:03:01.3]} 3... d5 {[%clk 0:02:57.7]}
4. Bg2 {[%clk 0:03:01.7]} 4... b5 {[%clk 0:02:57.8]} 5. O-O {[%clk 0:03:01.8]}
5... Bb7 {[%clk 0:02:57.9]} 6. a4 {[%clk 0:02:52.7]} 6... b4 {[%clk 0:02:57.3]}
7. Nbd2 {[%clk 0:02:52.9]} 7... Na6 {[%clk 0:02:51.5]} 8. Nb3 {[%clk 0:02:52.8]}
8... c5 {[%clk 0:02:49.3]} 9. dxc5 {[%clk 0:02:48.8]} 9... Nxc5 {[%clk
0:02:48.7]} 10. Nxc5 {[%clk 0:02:45]} 10... Bxc5 {[%clk 0:02:47.4]} 11. a5
{[%clk 0:02:45.9]} 11... a6 {[%clk 0:02:44.6]} 12. c3 {[%clk 0:02:32.1]} 12...
bxc3 {[%clk 0:02:37.5]} 13. bxc3 {[%clk 0:02:33]} 13... O-O {[%clk 0:02:36.5]}
14. Ne5 {[%clk 0:02:22.5]} 14... Qc7 {[%clk 0:02:24.7]} 15. Nd3 {[%clk
0:02:17.3]} 15... Bd6 {[%clk 0:02:19.7]} 16. Ba3 {[%clk 0:02:01.5]} 16... Rac8
{[%clk 0:02:10.4]} 17. Qb3 {[%clk 0:01:55.1]} 17... Bxa3 {[%clk 0:01:59.1]} 18.
Rxa3 {[%clk 0:01:56]} 18... Ne4 {[%clk 0:01:57.1]} 19. Bxe4 {[%clk 0:01:21.8]}
19... dxe4 {[%clk 0:01:56.4]} 20. Nf4 {[%clk 0:01:18.2]} 20... e3 {[%clk
0:01:44.3]} 21. f3 {[%clk 0:01:15.9]} 21... Rfd8 {[%clk 0:01:40.7]} 22. Ng2
{[%clk 0:01:12.4]} 22... Rd2 {[%clk 0:01:37.3]} 23. Re1 {[%clk 0:01:07.4]} 23...
Bd5 {[%clk 0:01:27.7]} 24. Qb6 {[%clk 0:01:03.7]} 24... Qe7 {[%clk 0:00:54.2]}
25. Qb4 {[%clk 0:00:53.4]} 25... Qxb4 {[%clk 0:00:47.7]} 26. cxb4 {[%clk
0:00:54.3]} 26... Rcc2 {[%clk 0:00:44.9]} 27. Nxe3 {[%clk 0:00:54]} 27... Rb2
{[%clk 0:00:40.1]} 28. Nxd5 {[%clk 0:00:28.7]} 28... Rxd5 {[%clk 0:00:29.9]} 29.
Rc3 {[%clk 0:00:25.7]} 29... g5 {[%clk 0:00:25.2]} 30. Rc6 {[%clk 0:00:17.7]}
30... Rxb4 {[%clk 0:00:24.1]} 31. Rxa6 {[%clk 0:00:15.7]} 31... Ra4 {[%clk
0:00:24.2]} 32. Kf2 {[%clk 0:00:10.4]} 32... Kg7 {[%clk 0:00:21.6]} 33. Rc1
{[%clk 0:00:09.8]} 33... Raxa5 {[%clk 0:00:19.7]} 34. Rxa5 {[%clk 0:00:10.7]}
34... Rxa5 {[%clk 0:00:19.1]} 35. h4 {[%clk 0:00:11.1]} 35... gxh4 {[%clk
0:00:18.6]} 36. gxh4 {[%clk 0:00:12]} 36... h5 {[%clk 0:00:18.5]} 37. Rc2 {[%clk
0:00:12.4]} 37... Kf6 {[%clk 0:00:18.2]} 38. Kg3 {[%clk 0:00:12.9]} 38... Ra4
{[%clk 0:00:18.5]} 39. e4 {[%clk 0:00:13.3]} 39... Ra1 {[%clk 0:00:16.8]}
1/2-1/2

[Event "*** Titled Tuesday Blitz"]
[Site "Chess.com"]
[Date "2020.05.19"]
[Round "5"]
[White "Kavyev_Ruslan"]
[Black "Mimsychess"]
[Result "0-1"]
[WhiteElo "2436"]
[BlackElo "2268"]
[TimeControl "180+1"]
[EndTime "12:57:00 PDT"]
[Termination "Mimsychess won by resignation"]

1. d4 {[%clk 0:03:00.9]} 1... Nf6 {[%clk 0:02:57.5]} 2. c4 {[%clk 0:03:01]} 2...
g6 {[%clk 0:02:57.7]} 3. Nc3 {[%clk 0:03:00.4]} 3... d5 {[%clk 0:02:58.2]} 4.
Bf4 {[%clk 0:02:59.4]} 4... Bg7 {[%clk 0:02:55.7]} 5. e3 {[%clk 0:02:59.9]} 5...
O-O {[%clk 0:02:53.3]} 6. Rc1 {[%clk 0:03:00]} 6... Be6 {[%clk 0:02:51.6]} 7. c5
{[%clk 0:03:00.1]} 7... c6 {[%clk 0:02:41]} 8. Bd3 {[%clk 0:02:59.5]} 8... Bg4
{[%clk 0:02:38.5]} 9. Qb3 {[%clk 0:02:44.2]} 9... b6 {[%clk 0:02:29.5]} 10. Na4
{[%clk 0:02:43.5]} 10... Nfd7 {[%clk 0:02:16.3]} 11. h3 {[%clk 0:02:40]} 11...
e5 {[%clk 0:02:09.7]} 12. dxe5 {[%clk 0:02:28]} 12... Be6 {[%clk 0:02:07.4]} 13.
Nf3 {[%clk 0:02:28.4]} 13... b5 {[%clk 0:01:58.1]} 14. Nc3 {[%clk 0:02:27.9]}
14... Nxc5 {[%clk 0:01:57.9]} 15. Qd1 {[%clk 0:02:26.8]} 15... Nxd3+ {[%clk
0:01:50.4]} 16. Qxd3 {[%clk 0:02:27.7]} 16... Nd7 {[%clk 0:01:46.6]} 17. Ne2
{[%clk 0:02:27.7]} 17... c5 {[%clk 0:01:37.1]} 18. O-O {[%clk 0:02:17.6]} 18...
Qc7 {[%clk 0:01:28]} 19. b4 {[%clk 0:02:16.6]} 19... c4 {[%clk 0:01:23.6]} 20.
Ned4 {[%clk 0:02:17]} 20... Qb6 {[%clk 0:01:15]} 21. Qd2 {[%clk 0:02:12.7]}
21... a5 {[%clk 0:01:13.5]} 22. bxa5 {[%clk 0:02:06.4]} 22... Qxa5 {[%clk
0:01:14.4]} 23. Qxa5 {[%clk 0:02:02.4]} 23... Rxa5 {[%clk 0:01:15.3]} 24. Rb1
{[%clk 0:02:03]} 24... Rxa2 {[%clk 0:01:12.7]} 25. Rxb5 {[%clk 0:02:02.7]} 25...
Rfa8 {[%clk 0:01:04.5]} 26. Ng5 {[%clk 0:02:00.5]} 26... Bxe5 {[%clk 0:01:00.2]}
27. Ngxe6 {[%clk 0:01:53]} 27... fxe6 {[%clk 0:00:58.7]} 28. Nxe6 {[%clk
0:01:53.2]} 28... Ra1 {[%clk 0:00:51.9]} 29. Rxd5 {[%clk 0:01:48.1]} 29... Rxf1+
{[%clk 0:00:49.8]} 30. Kxf1 {[%clk 0:01:49]} 30... c3 {[%clk 0:00:45.5]} 31.
Bxe5 {[%clk 0:01:49.1]} 31... Nxe5 {[%clk 0:00:41.7]} 32. Nd4 {[%clk 0:01:45.5]}
32... Nd3 {[%clk 0:00:32.3]} 33. Ke2 {[%clk 0:01:44.9]} 33... Nb4 {[%clk
0:00:30.7]} 34. Rc5 {[%clk 0:01:45]} 34... Ra2+ {[%clk 0:00:29.9]} 35. Kf3
{[%clk 0:01:42.3]} 35... c2 {[%clk 0:00:27.2]} 36. e4 {[%clk 0:01:42]} 36... Nd3
{[%clk 0:00:26.5]} 37. Ne2 {[%clk 0:01:36]} 37... Ra1 {[%clk 0:00:15.5]} 38. Ke3
{[%clk 0:01:30.5]} 38... c1=Q+ {[%clk 0:00:12.9]} 39. Nxc1 {[%clk 0:01:30.8]}
39... Rxc1 {[%clk 0:00:11]} 40. Ra5 {[%clk 0:01:28.6]} 40... Nb4 {[%clk
0:00:09.3]} 41. f4 {[%clk 0:01:24.2]} 41... Rc7 {[%clk 0:00:07.9]} 42. g4 {[%clk
0:01:21.7]} 42... Nc2+ {[%clk 0:00:07.8]} 43. Kd3 {[%clk 0:01:20.8]} 43... Nb4+
{[%clk 0:00:06.7]} 44. Ke3 {[%clk 0:01:19.9]} 44... Rc3+ {[%clk 0:00:06.6]} 45.
Kd4 {[%clk 0:01:16.7]} 45... Nc6+ {[%clk 0:00:05.6]} 46. Kxc3 {[%clk 0:01:17.2]}
46... Nxa5 {[%clk 0:00:06.5]} 47. h4 {[%clk 0:01:17.6]} 47... Kf7 {[%clk
0:00:05.4]} 48. h5 {[%clk 0:01:18]} 48... gxh5 {[%clk 0:00:03.5]} 49. gxh5
{[%clk 0:01:18.9]} 49... h6 {[%clk 0:00:04]} 50. Kd4 {[%clk 0:01:18.7]} 50...
Ke6 {[%clk 0:00:03.7]} 51. e5 {[%clk 0:01:16.2]} 51... Nc6+ {[%clk 0:00:03.2]}
52. Ke4 {[%clk 0:01:16.7]} 52... Ne7 {[%clk 0:00:04.1]} 53. Kf3 {[%clk
0:01:15.1]} 53... Nf5 {[%clk 0:00:05]} 54. Kg4 {[%clk 0:01:15.6]} 54... Ne7
{[%clk 0:00:05]} 55. Kf3 {[%clk 0:01:15.6]} 55... Kf5 {[%clk 0:00:05.3]} 56. Ke3
{[%clk 0:01:15.5]} 56... Nd5+ {[%clk 0:00:05.5]} 57. Kd4 {[%clk 0:01:16]} 57...
Nxf4 {[%clk 0:00:06.4]} 58. e6 {[%clk 0:01:16.5]} 58... Nxe6+ {[%clk 0:00:07.3]}
59. Ke3 {[%clk 0:01:16.3]} 59... Ng7 {[%clk 0:00:07.5]} 0-1

[Event "*** Titled Tuesday Blitz"]
[Site "Chess.com"]
[Date "2020.05.19"]
[Round "5"]
[White "davekoenig"]
[Black "queen_iryna"]
[Result "1-0"]
[WhiteElo "2182"]
[BlackElo "2321"]
[TimeControl "180+1"]
[EndTime "12:57:00 PDT"]
[Termination "davekoenig won by resignation"]

1. e4 {[%clk 0:03:00.9]} 1... d6 {[%clk 0:03:00.1]} 2. d4 {[%clk 0:03:00.8]}
2... Nf6 {[%clk 0:03:00.7]} 3. Nc3 {[%clk 0:03:00.2]} 3... g6 {[%clk 0:03:00.3]}
4. Bf4 {[%clk 0:02:58.6]} 4... c6 {[%clk 0:02:56.5]} 5. Qd2 {[%clk 0:02:56.9]}
5... b5 {[%clk 0:02:41.7]} 6. f3 {[%clk 0:02:46]} 6... Nbd7 {[%clk 0:02:41.2]}
7. O-O-O {[%clk 0:02:35.5]} 7... Bb7 {[%clk 0:02:30.5]} 8. Kb1 {[%clk
0:02:27.9]} 8... a6 {[%clk 0:02:29.1]} 9. Bd3 {[%clk 0:02:26.8]} 9... c5 {[%clk
0:02:25.2]} 10. dxc5 {[%clk 0:02:21]} 10... dxc5 {[%clk 0:02:17.1]} 11. Nh3
{[%clk 0:02:08.4]} 11... e6 {[%clk 0:02:13.1]} 12. Bh6 {[%clk 0:02:05.8]} 12...
Bxh6 {[%clk 0:02:05.9]} 13. Qxh6 {[%clk 0:02:04.9]} 13... Qc7 {[%clk 0:01:50.7]}
14. Ng5 {[%clk 0:02:01.2]} 14... b4 {[%clk 0:01:41.1]} 15. Na4 {[%clk 0:01:44]}
15... c4 {[%clk 0:01:38.7]} 16. Be2 {[%clk 0:01:43.1]} 16... Qc6 {[%clk
0:01:24.7]} 17. b3 {[%clk 0:01:27.4]} 17... Rc8 {[%clk 0:01:23.5]} 18. Rc1
{[%clk 0:01:21]} 18... Rf8 {[%clk 0:01:14.9]} 19. Bxc4 {[%clk 0:01:17.9]} 19...
Nc5 {[%clk 0:00:35.2]} 20. Nxc5 {[%clk 0:01:11.5]} 20... Qxc5 {[%clk 0:00:36.1]}
21. Nxh7 {[%clk 0:01:10.8]} 21... Nxh7 {[%clk 0:00:35.9]} 22. Qxh7 {[%clk
0:01:10.8]} 22... a5 {[%clk 0:00:35.9]} 23. Rhd1 {[%clk 0:01:08.5]} 23... a4
{[%clk 0:00:34.1]} 24. Bxe6 {[%clk 0:01:07.3]} 24... a3 {[%clk 0:00:27.4]} 25.
Bd7+ {[%clk 0:00:54.3]} 25... Ke7 {[%clk 0:00:25.8]} 26. c4 {[%clk 0:00:53.6]}
26... Qe5 {[%clk 0:00:20]} 27. Rc2 {[%clk 0:00:49.6]} 27... Rcd8 {[%clk
0:00:19.6]} 28. Rcd2 {[%clk 0:00:43.9]} 28... Bc8 {[%clk 0:00:13.2]} 29. Qh3
{[%clk 0:00:37.3]} 29... f5 {[%clk 0:00:09.1]} 30. Bxc8 {[%clk 0:00:30.6]} 30...
Rxd2 {[%clk 0:00:08.6]} 31. Rxd2 {[%clk 0:00:30.4]} 31... Rxc8 {[%clk
0:00:08.1]} 32. Qh4+ {[%clk 0:00:27.7]} 32... Kf7 {[%clk 0:00:07.2]} 33. Qh7+
{[%clk 0:00:24.3]} 33... Kf6 {[%clk 0:00:07.2]} 34. Qd7 {[%clk 0:00:22.7]} 34...
Rc5 {[%clk 0:00:05.8]} 35. Qd6+ {[%clk 0:00:21]} 35... Qxd6 {[%clk 0:00:05.8]}
36. Rxd6+ {[%clk 0:00:21]} 36... Ke5 {[%clk 0:00:05.6]} 37. Rd5+ {[%clk
0:00:20.8]} 1-0

[Event "*** Titled Tuesday Blitz"]
[Site "Chess.com"]
[Date "2020.05.19"]
[Round "5"]
[White "kuban1991"]
[Black "kirillshevchenko"]
[Result "0-1"]
[WhiteElo "2746"]
[BlackElo "2938"]
[TimeControl "180+1"]
[EndTime "12:57:02 PDT"]
[Termination "kirillshevchenko won on time"]

1. Nf3 {[%clk 0:03:00.9]} 1... Nf6 {[%clk 0:02:59.2]} 2. g3 {[%clk 0:03:01]}
2... g6 {[%clk 0:02:59.4]} 3. Bg2 {[%clk 0:03:01.7]} 3... Bg7 {[%clk 0:03:00.1]}
4. O-O {[%clk 0:03:02.3]} 4... O-O {[%clk 0:03:00.7]} 5. c4 {[%clk 0:03:02.7]}
5... d5 {[%clk 0:03:01.3]} 6. cxd5 {[%clk 0:02:51.6]} 6... Nxd5 {[%clk
0:03:02.2]} 7. Nc3 {[%clk 0:02:51.9]} 7... Nc6 {[%clk 0:03:01.3]} 8. Qb3 {[%clk
0:02:37.8]} 8... Nb6 {[%clk 0:02:54.3]} 9. d3 {[%clk 0:02:36.3]} 9... a5 {[%clk
0:02:45.4]} 10. a3 {[%clk 0:02:05.6]} 10... a4 {[%clk 0:02:41.7]} 11. Qc2 {[%clk
0:02:05.3]} 11... e5 {[%clk 0:02:30.2]} 12. Bg5 {[%clk 0:02:02.6]} 12... Qd7
{[%clk 0:02:11.8]} 13. Rfd1 {[%clk 0:01:39.7]} 13... h6 {[%clk 0:02:06.8]} 14.
Be3 {[%clk 0:01:39.3]} 14... Nd4 {[%clk 0:02:05.9]} 15. Bxd4 {[%clk 0:01:36]}
15... exd4 {[%clk 0:02:06.8]} 16. Ne4 {[%clk 0:01:35.3]} 16... Ra5 {[%clk
0:01:58.6]} 17. Rac1 {[%clk 0:01:33.6]} 17... c6 {[%clk 0:01:53.2]} 18. Qd2
{[%clk 0:01:26.8]} 18... Rb5 {[%clk 0:01:50.5]} 19. Rc5 {[%clk 0:01:22.4]} 19...
Rxc5 {[%clk 0:01:28.3]} 20. Nxc5 {[%clk 0:01:23.3]} 20... Qe7 {[%clk 0:01:28.9]}
21. Rc1 {[%clk 0:00:43]} 21... Nd7 {[%clk 0:01:28.7]} 22. Nxd7 {[%clk
0:00:29.6]} 22... Bxd7 {[%clk 0:01:29.6]} 23. Bf1 {[%clk 0:00:20.5]} 23... Re8
{[%clk 0:01:27.8]} 24. Qa5 {[%clk 0:00:18.9]} 24... b5 {[%clk 0:01:25.1]} 25.
Qb6 {[%clk 0:00:14]} 25... Qd6 {[%clk 0:01:21.2]} 26. Nd2 {[%clk 0:00:13.7]}
26... f5 {[%clk 0:01:15.5]} 27. Nf3 {[%clk 0:00:13.3]} 27... Bf6 {[%clk
0:01:11]} 28. Qc5 {[%clk 0:00:13.3]} 28... Re6 {[%clk 0:01:08.9]} 29. Qxd6
{[%clk 0:00:12.9]} 29... Rxd6 {[%clk 0:01:09.8]} 30. Nd2 {[%clk 0:00:12.9]}
30... Kf7 {[%clk 0:01:08.4]} 31. Bg2 {[%clk 0:00:13.3]} 31... Ke7 {[%clk
0:01:03.9]} 32. Kf1 {[%clk 0:00:13.8]} 32... Re6 {[%clk 0:01:03.3]} 33. f4
{[%clk 0:00:13.9]} 33... Kd6 {[%clk 0:01:02.9]} 34. Nf3 {[%clk 0:00:12]} 34...
c5 {[%clk 0:01:03.5]} 35. Kf2 {[%clk 0:00:10.1]} 35... Bc6 {[%clk 0:01:03.1]}
36. h4 {[%clk 0:00:09.7]} 36... h5 {[%clk 0:00:56.6]} 37. Ne1 {[%clk 0:00:10]}
37... Bd5 {[%clk 0:00:54.9]} 38. Bxd5 {[%clk 0:00:09.7]} 38... Kxd5 {[%clk
0:00:55.8]} 39. Nc2 {[%clk 0:00:08.5]} 39... Be7 {[%clk 0:00:49.9]} 40. Ne1
{[%clk 0:00:06.9]} 40... c4 {[%clk 0:00:49.2]} 41. Nf3 {[%clk 0:00:03.5]} 41...
c3 {[%clk 0:00:45.6]} 42. bxc3 {[%clk 0:00:02.2]} 42... Bxa3 {[%clk 0:00:43.2]}
43. c4+ {[%clk 0:00:01.8]} 43... Kc5 {[%clk 0:00:43.7]} 0-1

[Event "*** Titled Tuesday Blitz"]
[Site "Chess.com"]
[Date "2020.05.19"]
[Round "5"]
[White "Chessmatus"]
[Black "Manukyan_Artak"]
[Result "0-1"]
[WhiteElo "2481"]
[BlackElo "2322"]
[TimeControl "180+1"]
[EndTime "12:57:02 PDT"]
[Termination "Manukyan_Artak won by resignation"]

1. e4 {[%clk 0:03:00.9]} 1... c6 {[%clk 0:02:59.3]} 2. d4 {[%clk 0:02:59.1]}
2... d5 {[%clk 0:02:59.3]} 3. e5 {[%clk 0:02:59.3]} 3... Bf5 {[%clk 0:02:58.8]}
4. Nf3 {[%clk 0:02:58.5]} 4... e6 {[%clk 0:02:58.7]} 5. Be2 {[%clk 0:02:57.6]}
5... Nd7 {[%clk 0:02:56.6]} 6. O-O {[%clk 0:02:57]} 6... h6 {[%clk 0:02:55.7]}
7. Nbd2 {[%clk 0:02:56]} 7... Ne7 {[%clk 0:02:55.2]} 8. Nb3 {[%clk 0:02:55.6]}
8... Nc8 {[%clk 0:02:52.3]} 9. a4 {[%clk 0:02:52.9]} 9... b6 {[%clk 0:02:47.9]}
10. a5 {[%clk 0:02:43.3]} 10... b5 {[%clk 0:02:47.3]} 11. Bd2 {[%clk 0:02:39.1]}
11... a6 {[%clk 0:02:43.1]} 12. Ne1 {[%clk 0:02:34]} 12... c5 {[%clk 0:02:41.7]}
13. dxc5 {[%clk 0:02:29.1]} 13... Nxc5 {[%clk 0:02:41.6]} 14. Nxc5 {[%clk
0:02:28]} 14... Bxc5 {[%clk 0:02:42.5]} 15. Bd3 {[%clk 0:02:26.7]} 15... Bxd3
{[%clk 0:02:35.9]} 16. Nxd3 {[%clk 0:02:27.6]} 16... Be7 {[%clk 0:02:35.9]} 17.
Qg4 {[%clk 0:02:23.7]} 17... Kf8 {[%clk 0:02:31.3]} 18. f4 {[%clk 0:02:20.5]}
18... h5 {[%clk 0:02:31.1]} 19. Qf3 {[%clk 0:02:18]} 19... g6 {[%clk 0:02:30.8]}
20. b3 {[%clk 0:02:06.7]} 20... Na7 {[%clk 0:02:29.8]} 21. Rfd1 {[%clk
0:02:00.1]} 21... Rc8 {[%clk 0:02:16.1]} 22. Qf2 {[%clk 0:01:49.6]} 22... Nc6
{[%clk 0:01:58]} 23. c3 {[%clk 0:01:44.5]} 23... Kg7 {[%clk 0:01:57.6]} 24. Be3
{[%clk 0:01:34.9]} 24... Qc7 {[%clk 0:01:32.2]} 25. Bb6 {[%clk 0:01:34.4]} 25...
Qb7 {[%clk 0:01:31.3]} 26. Rab1 {[%clk 0:01:26.2]} 26... Nb8 {[%clk 0:01:30.4]}
27. Rbc1 {[%clk 0:00:53.8]} 27... Nd7 {[%clk 0:01:27.2]} 28. Bd4 {[%clk
0:00:54]} 28... b4 {[%clk 0:01:18]} 29. Qg3 {[%clk 0:00:34]} 29... Kf8 {[%clk
0:01:08.3]} 30. Rf1 {[%clk 0:00:28.3]} 30... bxc3 {[%clk 0:01:05.5]} 31. Bxc3
{[%clk 0:00:18]} 31... Qxb3 {[%clk 0:00:53.5]} 32. Ba1 {[%clk 0:00:17.9]} 32...
Rc4 {[%clk 0:00:48.3]} 33. Rb1 {[%clk 0:00:12.2]} 33... Qa3 {[%clk 0:00:38.6]}
34. Rb7 {[%clk 0:00:11]} 34... Ke8 {[%clk 0:00:34.8]} 35. Rfb1 {[%clk
0:00:09.8]} 35... h4 {[%clk 0:00:29.8]} 36. Rb8+ {[%clk 0:00:09.1]} 36... Nxb8
{[%clk 0:00:28.1]} 37. Rxb8+ {[%clk 0:00:10]} 37... Kd7 {[%clk 0:00:28.8]} 38.
Rxh8 {[%clk 0:00:08.2]} 38... hxg3 {[%clk 0:00:28.3]} 0-1

[Event "*** Titled Tuesday Blitz"]
[Site "Chess.com"]
[Date "2020.05.19"]
[Round "5"]
[White "Emolas-2020"]
[Black "ChessQueen"]
[Result "0-1"]
[WhiteElo "2385"]
[BlackElo "2603"]
[TimeControl "180+1"]
[EndTime "12:57:03 PDT"]
[Termination "ChessQueen won on time"]

1. e4 {[%clk 0:03:00.9]} 1... c6 {[%clk 0:02:50.7]} 2. d4 {[%clk 0:02:59.9]}
2... d5 {[%clk 0:02:49.8]} 3. Nc3 {[%clk 0:03:00.2]} 3... dxe4 {[%clk
0:02:49.5]} 4. Nxe4 {[%clk 0:03:01.1]} 4... Nf6 {[%clk 0:02:49.9]} 5. Nxf6+
{[%clk 0:03:00.9]} 5... exf6 {[%clk 0:02:50.1]} 6. Nf3 {[%clk 0:03:00.3]} 6...
Bd6 {[%clk 0:02:43.8]} 7. Be2 {[%clk 0:02:55.7]} 7... O-O {[%clk 0:02:43]} 8.
O-O {[%clk 0:02:54.7]} 8... Nd7 {[%clk 0:02:42.5]} 9. Re1 {[%clk 0:02:51.3]}
9... Re8 {[%clk 0:02:41.6]} 10. Be3 {[%clk 0:02:49.3]} 10... Nf8 {[%clk
0:02:40.6]} 11. Qd2 {[%clk 0:02:49.7]} 11... Ng6 {[%clk 0:02:39.1]} 12. h4
{[%clk 0:02:45.7]} 12... h5 {[%clk 0:02:31.5]} 13. c4 {[%clk 0:02:40.4]} 13...
Bg4 {[%clk 0:02:30.4]} 14. g3 {[%clk 0:02:36.6]} 14... Qc7 {[%clk 0:02:16.8]}
15. Kg2 {[%clk 0:02:27.8]} 15... Rad8 {[%clk 0:02:14.3]} 16. Ng1 {[%clk
0:02:20.9]} 16... f5 {[%clk 0:01:58.2]} 17. Nh3 {[%clk 0:01:56.2]} 17... f4
{[%clk 0:01:52.4]} 18. Nxf4 {[%clk 0:01:46.8]} 18... Bxf4 {[%clk 0:01:48.5]} 19.
Bxf4 {[%clk 0:01:42.6]} 19... Nxf4+ {[%clk 0:01:47.4]} 20. gxf4 {[%clk
0:01:40.9]} 20... Bxe2 {[%clk 0:01:45.2]} 21. Rxe2 {[%clk 0:01:39.8]} 21... Rxe2
{[%clk 0:01:46.1]} 22. Qxe2 {[%clk 0:01:40]} 22... Qxf4 {[%clk 0:01:46.5]} 23.
Rd1 {[%clk 0:01:31.3]} 23... Qxh4 {[%clk 0:01:45.1]} 24. Rd3 {[%clk 0:01:10]}
24... Rd6 {[%clk 0:01:16]} 25. Rg3 {[%clk 0:00:58.1]} 25... Qxd4 {[%clk
0:01:11.2]} 26. Qe8+ {[%clk 0:00:56.8]} 26... Kh7 {[%clk 0:01:11.2]} 27. Qxf7
{[%clk 0:00:56.4]} 27... Qe4+ {[%clk 0:00:45.1]} 28. Kh2 {[%clk 0:00:47.9]}
28... Qe5 {[%clk 0:00:43.6]} 29. Kg2 {[%clk 0:00:42.1]} 29... h4 {[%clk
0:00:32.6]} 30. Rg4 {[%clk 0:00:13.4]} 30... Rh6 {[%clk 0:00:22.3]} 31. Kh3
{[%clk 0:00:09.3]} 31... b5 {[%clk 0:00:18.5]} 32. cxb5 {[%clk 0:00:02.3]} 32...
cxb5 {[%clk 0:00:18.7]} 33. Qxa7 {[%clk 0:00:01.3]} 33... Qxb2 {[%clk 0:00:16]}
0-1

[Event "*** Titled Tuesday Blitz"]
[Site "Chess.com"]
[Date "2020.05.19"]
[Round "5"]
[White "Ceejay271"]
[Black "Stormeman100100"]
[Result "0-1"]
[WhiteElo "2392"]
[BlackElo "2553"]
[TimeControl "180+1"]
[EndTime "12:57:03 PDT"]
[Termination "Stormeman100100 won by resignation"]

1. d4 {[%clk 0:03:00.9]} 1... Nf6 {[%clk 0:02:58.9]} 2. c4 {[%clk 0:02:59.4]}
2... e6 {[%clk 0:02:56.2]} 3. Nc3 {[%clk 0:02:58.7]} 3... Bb4 {[%clk 0:02:53.5]}
4. g3 {[%clk 0:02:58.7]} 4... O-O {[%clk 0:02:49.3]} 5. Bg2 {[%clk 0:02:58.2]}
5... d5 {[%clk 0:02:47.8]} 6. Nf3 {[%clk 0:02:57.7]} 6... dxc4 {[%clk
0:02:46.9]} 7. O-O {[%clk 0:02:57.3]} 7... Nc6 {[%clk 0:02:41.6]} 8. Qa4 {[%clk
0:02:55.9]} 8... Nd5 {[%clk 0:02:40.7]} 9. Qc2 {[%clk 0:02:53.4]} 9... Be7
{[%clk 0:02:33.7]} 10. Rd1 {[%clk 0:02:52.5]} 10... Rb8 {[%clk 0:02:33.1]} 11.
e4 {[%clk 0:02:44.4]} 11... Ndb4 {[%clk 0:02:33.1]} 12. Qe2 {[%clk 0:02:43.7]}
12... Nd3 {[%clk 0:02:32]} 13. Be3 {[%clk 0:02:42.9]} 13... b5 {[%clk 0:02:28]}
14. d5 {[%clk 0:02:23.7]} 14... exd5 {[%clk 0:02:24.9]} 15. exd5 {[%clk
0:02:22.2]} 15... Ncb4 {[%clk 0:02:17.3]} 16. Bxa7 {[%clk 0:02:14.4]} 16... Ra8
{[%clk 0:02:13.9]} 17. Be3 {[%clk 0:02:11.8]} 17... Bb7 {[%clk 0:02:11.8]} 18.
Nxb5 {[%clk 0:01:59]} 18... Nxd5 {[%clk 0:02:00.3]} 19. Bd4 {[%clk 0:01:44.7]}
19... Bf6 {[%clk 0:01:56.9]} 20. b3 {[%clk 0:01:30.7]} 20... Re8 {[%clk
0:01:52.4]} 21. Qd2 {[%clk 0:01:22.8]} 21... Bxd4 {[%clk 0:01:47.7]} 22. Nfxd4
{[%clk 0:01:21.8]} 22... c6 {[%clk 0:01:42.7]} 23. bxc4 {[%clk 0:01:18.6]} 23...
cxb5 {[%clk 0:01:35.7]} 24. cxd5 {[%clk 0:01:17.9]} 24... Ne5 {[%clk 0:01:31.9]}
25. Nc6 {[%clk 0:01:13.8]} 25... Qb6 {[%clk 0:01:27.8]} 26. Rac1 {[%clk
0:01:02.8]} 26... Nc4 {[%clk 0:01:21.1]} 27. Qb4 {[%clk 0:00:59.5]} 27... Rxa2
{[%clk 0:01:12.5]} 28. Rf1 {[%clk 0:00:58.3]} 28... Nd2 {[%clk 0:01:01.1]} 29.
Rfd1 {[%clk 0:00:50]} 29... Nf3+ {[%clk 0:00:59.7]} 30. Kh1 {[%clk 0:00:46.2]}
30... Qxf2 {[%clk 0:00:57.2]} 31. Rg1 {[%clk 0:00:39.9]} 31... Nxg1 {[%clk
0:00:56.9]} 32. Rxg1 {[%clk 0:00:40.3]} 32... Rb2 {[%clk 0:00:44.5]} 33. Qc3
{[%clk 0:00:35.9]} 33... h6 {[%clk 0:00:28.2]} 34. h3 {[%clk 0:00:31.6]} 34...
Re3 {[%clk 0:00:24.6]} 35. Qd4 {[%clk 0:00:29.4]} 35... Rxg3 {[%clk 0:00:15.9]}
36. Qxf2 {[%clk 0:00:24.8]} 36... Rxf2 {[%clk 0:00:14.8]} 37. d6 {[%clk
0:00:22]} 37... Rgxg2 {[%clk 0:00:10.3]} 38. Rxg2 {[%clk 0:00:21.7]} 38... Bxc6
{[%clk 0:00:10.3]} 39. d7 {[%clk 0:00:21]} 39... Bxg2+ {[%clk 0:00:10.3]} 40.
Kg1 {[%clk 0:00:20.4]} 40... Rd2 {[%clk 0:00:11.2]} 0-1